Cogmind - Beta 14 @@@ ROGUE MODE // 2024.12.08 @ 20:26:40 Player: Duduxx Result: Destroyed by C-17 Slicer with Blade Saw Performance ------------- Evolutions (2) 1000 Regions Visited (8) 1600 Robots Destroyed (51) 255 Value Destroyed (1465) 1465 Prototype IDs (2) 40 Alien Tech Used (0) 0 Bonus (1000) 1000 TOTAL SCORE: 5360 Bonus ------- Entered Garrisons 200 Used RIF Installer 500 Aligned with FarCom 300 Cogmind --------- Core Integrity 0/550 Matter 279/300 Energy 31/100 System Corruption 1% Temperature Cool (5) Movement Core (300) Ox5 Location -8/Garrison Parts ------- > --- POWER (2) -------- (None) > --- PROPULSION (3) --- (None) > --- UTILITY (4) ------ Medium Storage Unit 0b10 Alert Chip > --- WEAPON (2) ------- Heavy Ion Cannon > --- INVENTORY (10) --- Improved Heat Sink Improved Heat Sink Improved Heat Sink High-capacity Storage Unit Relay Coupler [Duelist] (26) Remote Datajack Peak State ------------ > --- POWER ------------ Nuclear Core Light Nuclear Core > --- PROPULSION ------- Aluminum Leg Aluminum Leg Carbon-fiber Leg > --- UTILITY ---------- Improved Heat Sink Medium Storage Unit 0b10 Alert Chip Improved Light Armor Plating > --- WEAPON ----------- Heavy Ion Cannon Heavy Ion Cannon > --- INVENTORY -------- Light Nuclear Core Aluminum Leg Compact Wheel Heat Sink High-capacity Storage Unit Hacking Suite Heavy Ion Cannon Heavy Ion Cannon Rocket Launcher [Rating: 34] Favorites ----------- Power Light Nuclear Core Engine Light Ion Engine Power Core Light Nuclear Core Propulsion Light Treads Treads Light Treads Leg Aluminum Leg Wheel Compact Wheel Hover Unit Improved Hover Unit Flight Unit Flight Unit Utility 0b10 Alert Chip Device Improved Heat Sink Storage Small Storage Unit Processor 0b10 Alert Chip Hackware Hacking Suite Protection Light Armor Plating Weapon Heavy Ion Cannon Energy Gun Spread Laser Energy Cannon Heavy Ion Cannon Ballistic Gun Heavy Assault Rifle Launcher Rocket Launcher Build | -11 -10 -9 -9 -9 -8 -8 -8 -8 ------- Run | Yrd Mat Mat Min Exi Min Mat Sto Gar Slots Evolved 4 | . . 2 . . . 2 . . Power 1 | . . . . . . 1 . . Propulsion 1 | . . 1 . . . . . . Utility 2 | . . 1 . . . 1 . . Weapon . | . . . . . . . . . Parts Attached 60 | 6 2 1 18 4 . 4 18 7 Power 9 | 1 . . 2 . . 1 3 2 Engine 6 | 1 . . 2 . . 1 1 1 Core 3 | . . . . . . . 2 1 Reactor . | . . . . . . . . . Propulsion 14 | 2 . . 6 . . . 6 . Treads 4 | 2 . . 2 . . . . . Leg 4 | . . . . . . . 4 . Wheel 1 | . . . . . . . 1 . Hover 3 | . . . 2 . . . 1 . Flight 2 | . . . 2 . . . . . Utility 19 | 1 1 1 3 4 . 1 6 2 Device 6 | . 1 . 1 . . 1 2 1 Storage 8 | 1 . 1 1 3 . . 2 . Processor 1 | . . . . 1 . . . . Hackware 1 | . . . . . . . . 1 Protection 3 | . . . 1 . . . 2 . Artifact . | . . . . . . . . . Weapon 18 | 2 1 . 7 . . 2 3 3 Energy Gun 4 | 2 1 . 1 . . . . . Energy Cannon 7 | . . . . . . 2 3 2 Ballistic Gun 4 | . . . 4 . . . . . Ballistic Cannon . | . . . . . . . . . Launcher 3 | . . . 2 . . . . 1 Special Weapon . | . . . . . . . . . Impact Weapon . | . . . . . . . . . Slashing Weapon . | . . . . . . . . . Piercing Weapon . | . . . . . . . . . Special Melee Weapon . | . . . . . . . . . Unidentified Prototypes 2 | . . . . 1 . . 1 . Parts Lost 34 | . . 4 10 . . . 8 12 Power 8 | . . 1 1 . . . 2 4 Propulsion 13 | . . 1 5 . . . 4 3 Utility 5 | . . . 1 . . . 1 3 Weapon 8 | . . 2 3 . . . 1 2 Highest Loss Streak 7 | . . 4 5 . . . 4 7 To Critical Strikes . | . . . . . . . . . Average Slot Usage (%) 82 | . 96 76 62 88 88 89 91 82 Engine 8 | . 14 10 9 11 11 18 6 5 Core 5 | . . . . . . . 9 10 Treads 9 | . 28 21 7 22 22 18 4 . Leg 7 | . . . . . . . 17 12 Device 7 | . 10 11 6 5 . 9 8 9 Storage 10 | . 14 11 11 11 11 9 9 9 Processor 6 | . . . . 5 11 9 9 9 Hackware 2 | . . . . . . . . 7 Protection 4 | . . . 3 11 11 9 8 . Energy Gun 5 | . 28 21 3 11 11 . . . Energy Cannon 9 | . . . . . . 15 16 17 Ballistic Gun 3 | . . . 11 11 11 . . . Peak Build Rating 34 | 6 10 11 11 16 16 23 34 34 Average Rating 19 | 4 8 9 7 13 16 21 28 28 On Entrance 13 | . 6 10 5 11 16 16 23 33 Naked Turns . | . . . . . . . . . Heaviest Build 70 | 12 15 50 48 57 56 70 70 47 Greatest Support 40 | 40 40 40 40 40 40 40 40 35 Greatest Overweight (x) 15 | 3 . 2 15 1 1 1 2 3 Average Overweight (x) 1 | . . . 1 . 1 1 . 2 Largest Inventory Capacity 20 | 8 8 20 20 20 20 20 20 10 Average Capacity 12 | 7 8 16 11 17 20 20 10 10 Most Carried 10 | 1 2 4 4 4 4 4 10 8 Average Carried 4 | . 1 3 2 3 4 3 5 7 Final Capacity 20 | 8 8 20 8 20 20 20 10 10 Final Carried 7 | 1 1 4 3 4 4 4 7 6 Class Distribution -------------------- 70% | Scavenger-Mutant 29% | Mutant Dominant Class ---------------- Mutant | -10/Materials Mutant | -9/Materials Scavenger-Mutant | -9/Mines Scavenger-Mutant | -9/Exiles Scavenger-Mutant | -8/Mines Scavenger-Mutant | -8/Materials Scavenger-Mutant | -8/Storage Scavenger-Mutant | -8/Garrison Resources | -11 -10 -9 -9 -9 -8 -8 -8 -8 ----------- Run | Yrd Mat Mat Min Exi Min Mat Sto Gar Matter Collected 799 | 143 96 51 153 . . . 282 74 Remotely . | . . . . . . . . . Salvage Created 1587 | . 96 218 162 . . 58 827 226 Parts 95 | . 4 9 20 . . 4 43 15 Haulers Intercepted 2 | . . . . . . . 2 . Recyclers Shooed 2 | . . . . . . . 2 . Parts Field Recycled . | . . . . . . . . . Retrieved Matter . | . . . . . . . . . Parts Self-Destructed . | . . . . . . . . . Prevented . | . . . . . . . . . Kills | -11 -10 -9 -9 -9 -8 -8 -8 -8 ------- Run | Yrd Mat Mat Min Exi Min Mat Sto Gar Combat Hostiles Destroyed 45 | . 2 5 10 . . 4 14 10 Guns 12 | . 2 5 5 . . . . . Cannons 27 | . . . . . . 4 14 9 AOE 6 | . . . 5 . . . . 1 Classes Destroyed 9 | . 1 1 1 . . . 4 2 Hauler 2 | . . . . . . . 2 . Recycler 2 | . . . . . . . 2 . Operator 1 | . . . . . . . 1 . Watcher 1 | . . . . . . . 1 . Swarmer 23 | . . . 8 . . 4 5 6 Cutter 1 | . . . . . . . . 1 Grunt 14 | . 2 4 . . . . 7 1 Sentry 5 | . . 1 2 . . . 2 . Programmer 2 | . . . . . . . . 2 Best Kill Streak 6 | . 2 3 4 . . 4 6 3 Combat Bots Only 5 | . 2 3 4 . . 4 5 3 Max Kills in Single Turn 3 | . 1 1 3 . . 1 2 2 Gunslinging . | . . . . . . . . . Exploded 3 | . . . 3 . . . . 1 Melee . | . . . . . . . . . Uniques/NPCs Destroyed . | . . . . . . . . . Combat | -11 -10 -9 -9 -9 -8 -8 -8 -8 -------- Run | Yrd Mat Mat Min Exi Min Mat Sto Gar Hostile Shots Fired 422 | . 17 56 66 . . 29 190 64 Missed 104 | . 5 17 12 . . 6 53 11 Damage Taken 3862 | . 160 479 660 . . 199 1582 782 Core 919 | . 42 114 210 . . 18 352 183 Absorbed by Shields . | . . . . . . . . . Core Remaining (%) 67 | 100 83 . . . 19 . . . Volleys Fired 146 | . 9 20 30 . . 8 44 35 Largest 2 | . 2 2 2 . . 2 2 2 Hottest 130 | . 105 105 88 . . 130 130 130 Shots Fired 256 | . 18 40 36 . . 13 81 68 Gun 91 | . 18 40 33 . . . . . Cannon 161 | . . . . . . 13 81 67 Launcher 4 | . . . 3 . . . . 1 Special . | . . . . . . . . . Kinetic 31 | . . . 31 . . . . . Thermal 221 | . 18 40 2 . . 13 81 67 Explosive 4 | . . . 3 . . . . 1 Electromagnetic . | . . . . . . . . . Robot Hit Streak 13 | . 6 5 13 . . 1 6 7 Robot Miss Streak 7 | . 2 3 5 . . 7 3 4 Penetration Max . | . . . . . . . . . Secondary Targets . | . . . . . . . . . Shots Hit Robots 144 | . 12 25 24 . . 4 51 28 Core Hits 71 | . 6 10 13 . . 4 26 12 Critical Kills . | . . . . . . . . . Critical Parts Destroyed 1 | . . . 1 . . . . . Critical Strikes 2 | . . 1 1 . . . . . Burn 1 | . . 1 . . . . . . Destroy 1 | . . . 1 . . . . . Melee Attacks . | . . . . . . . . . Impact . | . . . . . . . . . Slashing . | . . . . . . . . . Piercing . | . . . . . . . . . Sneak Attacks . | . . . . . . . . . Combat Hostiles . | . . . . . . . . . Follow-up Attacks . | . . . . . . . . . Damage Inflicted 3686 | . 143 383 473 . . 185 1474 1028 Guns 730 | . 143 376 211 . . . . . Cannons 2535 | . . . . . . 185 1457 893 Explosions 397 | . . . 262 . . . . 135 Melee . | . . . . . . . . . Ramming 24 | . . 7 . . . . 17 . Kinetic 202 | . . . 202 . . . . . Thermal 3063 | . 143 376 9 . . 185 1457 893 Explosive 397 | . . . 262 . . . . 135 Electromagnetic . | . . . . . . . . . Impact . | . . . . . . . . . Slashing . | . . . . . . . . . Piercing . | . . . . . . . . . Highest Corruption 1 | . . . . . . . 1 1 Average Corruption 1 | . . . . . . . 1 1 Corruption Purged . | . . . . . . . . . Corruption Blocked . | . . . . . . . . . Effects 19 | . . . . . . . 6 13 Message Errors 2 | . . . . . . . . 2 Matter Fused 9 | . . . . . . . 4 5 Energy Discharges 1 | . . . . . . . 1 . Data Loss (minor) 3 | . . . . . . . 1 2 Data Loss (major) 1 | . . . . . . . . 1 Misfires 2 | . . . . . . . . 2 Alerts 1 | . . . . . . . . 1 Overload Shots . | . . . . . . . . . Overflow Damage 249 | . . . 144 . . 13 40 52 Projectiles 98 | . . . . . . 13 40 45 Explosions 151 | . . . 144 . . . . 7 Melee . | . . . . . . . . . Knockbacks 1 | . . . . . . . 1 . Impact 1 | . . . . . . . 1 . Kinetic . | . . . . . . . . . Secondary . | . . . . . . . . . Self-Inflicted Damage 153 | . . . 108 . . . . 45 Shots 4 | . . . 3 . . . . 1 Rammed 1 | . . 1 . . . . . . Targets Rammed 4 | . . 1 . . . . 3 . Kicked 3 | . . . . . . . 3 . Crushed . | . . . . . . . . . Highest Temperature 359 | . 198 28 2 . . 270 359 208 Average Temperature 90 | . 94 12 1 . . 152 102 82 Received Heat Transfer 963 | . 87 237 81 . . . 486 72 Effects 3 | . . . . . . 2 1 . Shutdowns 1 | . . . . . . . 1 . Interference 2 | . . . . . . 2 . . Siege Activations . | . . . . . . . . . Robots Corrupted . | . . . . . . . . . Combat Hostiles . | . . . . . . . . . Parts Fried . | . . . . . . . . . Impact Corruptions . | . . . . . . . . . Robots Melted . | . . . . . . . . . Combat Hostiles . | . . . . . . . . . Parts Melted 5 | . . 2 . . . 1 1 1 Heat Transferred 4705 | . 337 954 10 . . 259 1998 1147 Parts Sabotaged . | . . . . . . . . . Parts Stolen . | . . . . . . . . . Parts Stripped . | . . . . . . . . . Power Chain Reactions . | . . . . . . . . . Alert | -11 -10 -9 -9 -9 -8 -8 -8 -8 ------- Run | Yrd Mat Mat Min Exi Min Mat Sto Gar Peak Influence 369 | . 80 208 258 . . 80 226 369 Initial 65 | . . 33 65 . . . 33 37 Average 121 | . 46 89 149 . . 15 99 180 Maximum Alert Level 1 | . . 1 1 . . . 1 1 Low Security (%) 79 | 100 100 99 66 . 100 100 88 64 Level 1 20 | . . . 33 . . . 11 35 Level 2 . | . . . . . . . . . Level 3 . | . . . . . . . . . Level 4 . | . . . . . . . . . Level 5 . | . . . . . . . . . High Security . | . . . . . . . . . Max Security . | . . . . . . . . . Squads Dispatched 8 | . . 4 . . . . 4 . Investigation 3 | . . 2 . . . . 1 . Extermination . | . . . . . . . . . Reinforcement 4 | . . 2 . . . . 2 . Assault . | . . . . . . . . . Garrison 1 | . . . . . . . 1 . Intercept . | . . . . . . . . . Searches Triggered . | . . . . . . . . . Construction Impeded . | . . . . . . . . . Haulers Reinforced . | . . . . . . . . . Active Scanning Responses . | . . . . . . . . . Cargo Convoy Interrupts . | . . . . . . . . . Stealth | -11 -10 -9 -9 -9 -8 -8 -8 -8 --------- Run | Yrd Mat Mat Min Exi Min Mat Sto Gar Distress Signals 6 | . . 3 . . . 1 2 . Communications Jammed . | . . . . . . . . . Distress Signals . | . . . . . . . . . Times Spotted 83 | . 6 18 14 . . 5 28 12 Peak Tracking Total 10 | . 3 10 4 . . 5 9 6 Tactical Retreats 5 | . . 1 2 . . . 1 1 Traps | -11 -10 -9 -9 -9 -8 -8 -8 -8 ------- Run | Yrd Mat Mat Min Exi Min Mat Sto Gar Traps Triggered 3 | . . 1 . . . . 1 1 Indirectly . | . . . . . . . . . Trap Hack Attempts . | . . . . . . . . . Triggered . | . . . . . . . . . Disarmed . | . . . . . . . . . Reprogrammed . | . . . . . . . . . Reused . | . . . . . . . . . Traps Extracted . | . . . . . . . . . Installed . | . . . . . . . . . Triggered . | . . . . . . . . . Machines | -11 -10 -9 -9 -9 -8 -8 -8 -8 ---------- Run | Yrd Mat Mat Min Exi Min Mat Sto Gar Machines Disabled 3 | . . . . . . . 2 1 Max in Single Turn 1 | . . . . . . . 1 1 Garrison Relay 1 | . . . . . . . . 1 Machines Repaired . | . . . . . . . . . Machines Dismantled . | . . . . . . . . . Machines Sabotaged . | . . . . . . . . . Overloaded Fab Kills . | . . . . . . . . . Hacking | -11 -10 -9 -9 -9 -8 -8 -8 -8 --------- Run | Yrd Mat Mat Min Exi Min Mat Sto Gar Machines Accessed 8 | . . 1 . 3 . . 3 1 Terminals 4 | . . 1 . . . . 2 1 Fabricators . | . . . . . . . . . Repair Stations . | . . . . . . . . . Recycling Units . | . . . . . . . . . Scanalyzers . | . . . . . . . . . Garrison Access 1 | . . . . . . . 1 . Total Hacks 16 | . . 3 . 7 . . 5 1 Successful 11 | . . . . 7 . . 3 1 Failed 5 | . . 3 . . . . 2 . Catastrophic 3 | . . 2 . . . . 1 . Database Lockouts . | . . . . . . . . . Manual 1 | . . . . 1 . . . . Terminals 7 | . . 3 . . . . 3 1 Fabricators . | . . . . . . . . . Repair Stations . | . . . . . . . . . Recycling Units . | . . . . . . . . . Scanalyzers . | . . . . . . . . . Garrison Access 2 | . . . . . . . 2 . Terminal Hacks 10 | . . . . 7 . . 2 1 Record 7 | . . . . 7 . . . . Open Door 2 | . . . . . . . 2 . Garrison Registry 1 | . . . . . . . . 1 Fabricator Hacks . | . . . . . . . . . Repair Station Hacks . | . . . . . . . . . Recycling Unit Hacks . | . . . . . . . . . Scanalyzer . | . . . . . . . . . Garrison Access Hacks 1 | . . . . . . . 1 . Unlock Access 1 | . . . . . . . 1 . Unauthorized Hacks . | . . . . . . . . . Terminals . | . . . . . . . . . Fabricators . | . . . . . . . . . Repair Stations . | . . . . . . . . . Recycling Units . | . . . . . . . . . Scanalyzers . | . . . . . . . . . Garrison Access . | . . . . . . . . . Data Cores Recovered 1 | . . . . . . . 1 . Used . | . . . . . . . . . Hacking Detections 3 | . . 1 . . . . 2 . Full Trace Events 2 | . . 1 . . . . 1 . Feedback Events . | . . . . . . . . . Feedback Blocked . | . . . . . . . . . Robot Schematics Acquired . | . . . . . . . . . Robots Built . | . . . . . . . . . Authchips . | . . . . . . . . . Time . | . . . . . . . . . Total Robot Build Rating . | . . . . . . . . . Part Schematics Acquired . | . . . . . . . . . Parts Built . | . . . . . . . . . Authchips . | . . . . . . . . . Time . | . . . . . . . . . Total Part Build Rating . | . . . . . . . . . Parts Repaired . | . . . . . . . . . Time . | . . . . . . . . . Parts Recycled . | . . . . . . . . . Recycled Matter . | . . . . . . . . . Retrieved Matter . | . . . . . . . . . Retrieved Components . | . . . . . . . . . Parts Scanalyzed . | . . . . . . . . . Part Schematics Acquired . | . . . . . . . . . Parts Damaged . | . . . . . . . . . Bothacking | -11 -10 -9 -9 -9 -8 -8 -8 -8 ------------ Run | Yrd Mat Mat Min Exi Min Mat Sto Gar Used RIF Installer 1 | . . . . . . . . 1 Robots Hacked . | . . . . . . . . . Non-combat . | . . . . . . . . . Combat . | . . . . . . . . . Robot Hacks Applied . | . . . . . . . . . Relay Couplers Released 3 | . . . . . . . . 3 Machine Destruction 3 | . . . . . . . . 3 Fabnet Peak Effective % . | . . . . . . . . . Robots Rewired . | . . . . . . . . . Allies Hacked . | . . . . . . . . . Hacks Repelled . | . . . . . . . . . Allies | -11 -10 -9 -9 -9 -8 -8 -8 -8 -------- Run | Yrd Mat Mat Min Exi Min Mat Sto Gar Total Allies . | . . . . . . . . . Largest Group . | . . . . . . . . . Highest-Rated Group . | . . . . . . . . . Highest-Rated Ally . | . . . . . . . . . Total Orders . | . . . . . . . . . Ally Attacks . | . . . . . . . . . Total Damage . | . . . . . . . . . Kills . | . . . . . . . . . Allies Corrupted . | . . . . . . . . . Allies Melted . | . . . . . . . . . Intel | -11 -10 -9 -9 -9 -8 -8 -8 -8 ------- Run | Yrd Mat Mat Min Exi Min Mat Sto Gar Robot Analysis Total . | . . . . . . . . . Derelict Logs Recovered . | . . . . . . . . . Drone Launches . | . . . . . . . . . Drone Recoveries . | . . . . . . . . . Exploration | -11 -10 -9 -9 -9 -8 -8 -8 -8 ------------- Run | Yrd Mat Mat Min Exi Min Mat Sto Gar Turns Passed 4292 | 79 159 357 632 644 188 138 876 1219 Spaces Moved 1739 | 46 81 143 286 298 79 46 380 380 Core 12 | 6 . . 6 . . . . . Treads 883 | 40 81 143 124 298 79 46 72 . Legs 628 | . . . . . . . 248 380 Wheels 12 | . . . . . . . 12 . Hover 139 | . . . 91 . . . 48 . Flight 65 | . . . 65 . . . . . Fastest Speed 50 | 50 160 160 60 160 240 240 60 190 Average Speed 216 | 153 160 203 189 214 240 240 184 285 Slowest Speed 840 | 200 160 320 840 240 240 240 260 330 Overloaded Moves . | . . . . . . . . . Propulsion Burnouts . | . . . . . . . . . Robots Hopped . | . . . . . . . . . Cave-ins Triggered . | . . . . . . . . . Exploration Rate (%) 31 | 3 22 21 49 67 22 6 53 38 Regions Visited 8 Branch Regions 4 Pre-discovered Areas 1 | . . . . 1 . . . . Known Exits Taken 1 | . . . . . . . 1 . Unknown Exits Taken 7 | 1 1 1 1 1 1 1 . . Scrap Searched . | . . . . . . . . . Spaces Dug . | . . . . . . . . . Terrain Destroyed 70 | . . . 36 . . 5 20 9 Melee . | . . . . . . . . . Projectile 25 | . . . . . . 5 20 . AOE 45 | . . . 36 . . . . 9 Terrain Rammed . | . . . . . . . . . Walls Destroyed . | . . . . . . . . . Machines Disabled . | . . . . . . . . . Actions | -11 -10 -9 -9 -9 -8 -8 -8 -8 --------- Run | Yrd Mat Mat Min Exi Min Mat Sto Gar Total 2014 | 52 93 169 339 302 78 63 469 449 Wait 38 | . . 2 4 . . . 11 21 Move 1732 | 45 80 142 285 297 78 45 380 380 Hop . | . . . . . . . . . Pick Up 15 | 1 . 2 . 1 . 2 5 4 Fast Attach 35 | 6 2 1 14 . . 2 7 3 Attach 15 | . . . 3 . . 2 7 3 Detach 11 | . 1 1 2 . . 2 5 . Swap 10 | . . . 1 4 . . 4 1 Drop 8 | . 1 . . . . 2 3 2 Fire 146 | . 9 20 30 . . 8 44 35 Melee . | . . . . . . . . . Ram . | . . . . . . . . . Kick 3 | . . . . . . . 3 . Crush 1 | . . 1 . . . . . . Escape Stasis . | . . . . . . . . . Rewire . | . . . . . . . . . Trap . | . . . . . . . . . Miscellaneous . | . . . . . . . . . Route ------- -11/Scrapyard -10/Materials -9/Materials -9/Mines -9/Exiles -8/Mines -8/Materials -8/Storage -8/Garrison (discovered 3 exits: [Rec x3]) History --------- Turn | Location | Event 35 | -11/Scrapyard | Discovered new exit (range 13) 80 | -11/Scrapyard | Entered Materials 233 | -10/Materials | Discovered new exit (range 5) 239 | -10/Materials | Entered another Materials area 239 | -9/Materials | Evolved 2 slots: Propulsion x1, Utility x1 310 | -9/Materials | Build established: Mutant 581 | -9/Materials | Discovered new exit (range 6) 596 | -9/Materials | Entered Mines 635 | -9/Mines | Lost 5 parts (1p2n2w) 676 | -9/Mines | Deemed a non-threat by the Exiles lab entrance 676 | -9/Mines | Discovered new exit (range 5) 780 | -9/Mines | Core integrity fell below 50% 899 | -9/Mines | Lost 3 parts (2n1w) 1041 | -9/Mines | Lost 5 parts (1p2n2w) 1187 | -9/Mines | Core integrity fell below 20% 1228 | -9/Mines | Entered Exiles 1268 | -9/Exiles | Met 8R-AWN 1292 | -9/Exiles | Met EX-HEX 1308 | -9/Exiles | Build established: Scavenger-Mutant 1355 | -9/Exiles | Met EX-BIN 1377 | -9/Exiles | Aligned with FarCom system 1379 | -9/Exiles | Given EX-Vault access code 1522 | -9/Exiles | Opened EX-Vault 1536 | -9/Exiles | Found Prototype Processor 1540 | -9/Exiles | Identified 0b10 Alert Chip 1601 | -9/Exiles | Warned to stay clear of 0b10 Research branches 1678 | -9/Exiles | Met EX-DEC 1743 | -9/Exiles | Learned location of Zion (-6) 1843 | -9/Exiles | Discovered new exit (range 14) 1872 | -9/Exiles | Left Exiles lab with 0b10 Alert Chip 1872 | -9/Exiles | Entered Mines 2045 | -8/Mines | Discovered new exit (range 7) 2060 | -8/Mines | Entered Materials 2060 | -8/Materials | Evolved 2 slots: Power x1, Utility x1 2060 | -8/Materials | Discovered new exit (range 15) 2198 | -8/Materials | Entered Storage 2413 | -8/Storage | Lost 4 parts (2p1n1u) 2671 | -8/Storage | Build established: Mutant 3033 | -8/Storage | Garrison activated, responded to threat 3038 | -8/Storage | Core integrity fell below 50% 3054 | -8/Storage | Build established: Scavenger-Mutant 3074 | -8/Storage | Identified exit to Garrison 3074 | -8/Storage | Entered Garrison 3148 | -8/Garrison | Installed Relay Interface Framework 3232 | -8/Garrison | Triggered checkpoint 3404 | -8/Garrison | Lost 3 parts (2p1n) 3443 | -8/Garrison | Discovered new exit (range 69) 3443 | -8/Garrison | Discovered new exit (range 43) 3443 | -8/Garrison | Discovered new exit (range 73) 3864 | -8/Garrison | Garrison Relay disabled 3994 | -8/Garrison | Triggered checkpoint 4278 | -8/Garrison | Core integrity fell below 20% 4293 | -8/Garrison | Destroyed by C-17 Slicer with Blade Saw Last Messages --------------- 04062_ System corrupted: Hvy. Ion Cannon misfires. 04063_ Acquired 8 matter. 04094_ System corrupted: Matter fused (-7). 04118_ K0KP5QT4K%A99TZ6Z1EMDB 04260_ System corrupted: Component data lost. 04274_ ALERT: Garrison interior compromised. 04275_ Lgt. Nuclear Core destroyed. 04275_ Hvy. Ion Cannon destroyed. 04278_ Aluminum Leg destroyed. 04281_ Hvy. Ion Cannon severed. 04283_ Imp. Heat Sink destroyed. 04283_ Lgt. Ion Engine destroyed. 04283_ C-17 Slicer destroyed. 04283_ Rocket Launcher destroyed. 04283_ Destroyed Rocket Launcher. 04283_ Hacking Suite destroyed. 04283_ Destroyed Hacking Suite. 04284_ Hvy. Ion Cannon severed. 04286_ Acquired Hvy. Ion Cannon. Map ----- +----------------------------------------------------+ | ??????????#"" ^ #??????# #??# #??# #?### | | ??????????#"" """""#+####??????# #??# #??# #?# | | ??????????###+#" ##???????# #??# #?##+###"" | | ??????????## "###?####### ####+### | | ??????????#######"""""###?# !^# [%=[ | | ??????????##############??# =!%! %==*% | | ??????????????????????????# %########### ## | | ??????????????????????????#######???????### ## | | ????????????????????????????????????????# | | ????????????????????????????????????????# | | ????????????????????????????????????????# | | ?????????????????????############???????# | | ?????????????????????#""""""""""#???????### ## | | ?????????????????????#"""!!!!!!"########### ## | | ?????????????????????#"" + | | ?????????????????????#"! + | | ?????????????????????#"! ## ####### | | ?????????????????????#"! ## #?????# ##"" | | ?????????????????????#"! ## #?????# ## | | ?????????????????????#"" ## #?????# ##+# | | ?????????????????????#"""!!!!!!"## ####### ## # | | ?????????????????????#""""""""""## " + # | | ?????????????????????############# ####### #### | | ???????????????????????#######???# #?????# #??? | | ????????????????######## #####+"####### #??? | | ??????????????### ; ]@ ^^ #??? | | ??????????????#"# + c%c ^^ #??? | | ??????????????#" ### * ^^ #??? | | ??????????????#" #?# ##################??? | | ??????????????#" #?# #####???????????????????? | | ??????????????#"# #?# #???????????????????????? | | ??????????????### #?# #???????????????????????? | | ????#######?????# #?# #???????????????????????? | | ????#!!# #?????# #?# #???????????????????????? | | ????# /!!#???### #?# #???????????????????????? | | ????#+##+######s" #?# #???????????????????????? | | ????# + +s" #?# #???????????????????????? | | ????#+##+### ##s" #?# #???????????????????????? | | ????# /!!## #### #?# #???????????????????????? | | ????#!!# ## #??# #?# #???????????????????????? | | ????######## #??# ### #???????????????????????? | | ???????????# #??# #???????????????????????? | | ???????????# #??#^^^^^ #???????????????????????? | | ???????????# #??###### #???????????????????????? | | ???????????# #???????# #???????????????????????? | | ???????????# #???????# #???????????????????????? | | ??????????##+######### #???????????????????????? | | ??????????# #???????????????????????? | | ??????????# < #???????????????????????? | | ??????????# #???????????????????????? | +----------------------------------------------------+ Best States ------------- Heat Dissipation 59 Energy Generation 23 Energy Capacity 420 Matter Stores 300 Matter Capacity 300 Sight Range 16 Terrain Scan Density 10 Armor Coverage 225 Evasion (%) 53 Recoil Reduction 2 Offensive Hacking 10 Item Schematics ----------------- None Robot Schematics ------------------ None Fabricated ------------ Nothing Alien Tech Used ----------------- None Achievements -------------- None Challenges ------------ None Game ------ Seed IntegratedGravmagNeutralizer Manual? 0 Play Time 00:25:26 Cumulative 75.0 hours Start 2024.12.08 @ 00:01:26 End 2024.12.08 @ 20:26:40 Sessions 3 Manual Loads 0 Difficulty Rogue Special Mode None Game No. 152 Rogue 152 Adventurer 0 Explorer 0 Win Type - Total 0 Types 0/0/0/0/0/0/0/0/0 Lore% 22 Gallery% 40 Achievement% 33 Wizard Run 0 Options --------- Layout 1 ASCII 0 Keyboard 1 Movement Arrows Keybinds 0 Fullscreen 1 Font 24/Smallcaps Map View 50x35 Zoom Use 0% Tactical HUD 1 Map Filters NONE Filters NONE Steam 1 RUN: 0c80362b-cb1b-473a-aea3-eaf357e57e31